bitfinex-derivatives/quotes_SOLF0:USTF0_20250820
["timestamp","ask_amount","ask_price","bid_price","bid_amount"]
[1755671295924,0.03821447,180.35,180.31,1.86]
[1755671299223,0.03821447,180.35,180.33,1.86]
[1755671299420,135.26,180.38,180.35,1.82]
[1755671301428,135.26,180.38,180.34,1.57419597]
[1755671301726,135.26,180.38,180.37,1.82]
[1755671303729,4.46419597,180.45,180.37,1.82]
[1755671303926,135.26,180.44,180.37,3.39419597]
[1755671304127,135.26,180.44,180.37,1.57419597]
[1755671304329,135.26,180.44,180.38,1.82]
[1755671304522,135.26,180.44,180.41,1.57419597]
[1755671304727,135.26,180.44,180.43,1.82]
[1755671305428,135.26,180.44,180.41,1.82]
[1755671305828,138.15,180.44,180.41,1.82]
[1755671307531,372.56,180.47,180.37,1.82]
[1755671307728,507.8,180.47,180.37,1.82]
[1755671307926,2.89,180.46,180.37,1.82]
[1755671309038,2.89,180.46,180.38,1.82]
[1755671309834,2.89,180.46,180.38,7.364]
[1755671310036,2.89,180.46,180.39,1.82]
[1755671310235,2.89,180.46,180.4,1.82]
[1755671310434,135.24,180.47,180.4,1.82]
[1755671310937,2.93,180.46,180.4,1.82]
[1755671316042,135.24,180.47,180.4,1.82]
[1755671321246,2.93,180.46,180.4,1.82]
[1755671321541,2.93,180.46,180.4,7.3635]
[1755671321738,2.93,180.46,180.4,5.5435]
[1755671322140,2.93,180.46,180.41,1.82]
[1755671322446,135.24,180.47,180.42,1.82]
[1755671322946,135.24,180.47,180.41,5.5431]
[1755671323641,135.24,180.47,180.45,1.82]
[1755671323945,135.24,180.47,180.46,1.82]
[1755671327447,135.24,180.47,180.44,1.82]
[1755671327654,135.24,180.47,180.43,5.5425]
[1755671327854,2.93,180.51,180.44,1.82]
[1755671328152,2.93,180.51,180.42,2.45783555]
[1755671328153,135.16,180.52,180.42,2.45783555]
[1755671328353,135.16,180.52,180.46,1.82]
[1755671329356,135.16,180.52,180.47,1.82]
[1755671329549,135.16,180.52,180.46,5.5414]
[1755671329750,138.09,180.52,180.47,1.82]
[1755671329949,2.93,180.51,180.38,6.16000399]
[1755671330150,2.93,180.51,180.39,1.82]
[1755671330351,2.93,180.51,180.4,1.82]
[1755671330853,2.93,180.51,180.42,1.82]
[1755671333255,2.93,180.51,180.43,1.82]
[1755671334353,2.93,180.51,180.44,1.82]
[1755671336350,2.93,180.51,180.39,1.82]
[1755671336551,2.93,180.48,180.39,1.82]
[1755671336744,2.93,180.46,180.39,1.82]
[1755671340560,2.93,180.46,180.35,1.83]
[1755671342661,2.93,180.46,180.35,7.3747]
[1755671342860,2.93,180.46,180.36,1.83]
[1755671344152,2.93,180.46,180.36,7.3745]
[1755671344358,2.93,180.46,180.37,1.83]
[1755671345962,2.93,180.46,180.38,1.83]
[1755671346754,2.93,180.46,180.39,1.83]
[1755671347364,2.93,180.46,180.39,7.3735]
[1755671347563,2.93,180.46,180.4,1.83]
[1755671352967,3.91943506,180.45,180.4,1.83]
[1755671353265,2.86,180.45,180.39,5.5437]
[1755671353466,2.86,180.45,180.42,1.83]
[1755671354168,2.86,180.45,180.39,5.5437]
[1755671354365,2.86,180.45,180.4,1.83]
[1755671354667,2.86,180.45,180.42,1.83]
[1755671355567,2.86,180.44,180.42,1.83]
[1755671355758,2.86,180.44,180.39,5.5437]
[1755671355958,2.86,180.44,180.39,1.83]
[1755671356268,2.86,180.44,180.41,1.83]
[1755671357165,135.46,180.47,180.41,1.83]
[1755671357362,2.86,180.43,180.38,1.83]
[1755671357564,135.46,180.47,180.37,8.00203555]
[1755671357867,2.86,180.42,180.38,1.83]
[1755671358072,2.86,180.42,180.39,1.83]
[1755671358260,2.86,180.42,180.38,1.83]
[1755671358461,2.86,180.42,180.37,8.00203555]
[1755671358670,2.86,180.42,180.4,1.83]
[1755671359467,2.86,180.41,180.37,2.45783555]
[1755671359669,2.86,180.41,180.39,1.83]
[1755671359969,135.46,180.47,180.39,1.83]
[1755671360170,6.78004619,180.46,180.39,1.83]
[1755671360361,135.46,180.47,180.39,1.83]
[1755671360362,2.86,180.44,180.39,1.83]
[1755671360561,135.46,180.47,180.39,1.83]
[1755671360762,3.92029628,180.46,180.37,2.45783555]
[1755671360967,2.86,180.44,180.36,7.3745]
[1755671361168,2.86,180.42,180.36,7.3745]
[1755671361667,2.86,180.42,180.37,5.5442]
[1755671362068,2.86,180.42,180.39,1.83]
[1755671362774,2.86,180.42,180.37,5.5442]
[1755671362974,2.86,180.46,180.37,2.45783555]
[1755671363174,3.92009586,180.45,180.38,1.83]
[1755671363376,2.86,180.46,180.38,1.83]
[1755671363574,3.92012621,180.45,180.38,1.83]
[1755671363878,2.86,180.46,180.38,1.83]
[1755671364178,3.92012621,180.45,180.38,7.3739]
[1755671364378,2.86,180.44,180.38,7.3739]
[1755671365576,2.86,180.44,180.38,5.5439]
[1755671365783,138.32,180.47,180.41,1.83]
[1755671365974,2.86,180.45,180.42,1.83]
[1755671367479,2.86,180.45,180.4,5.5433]
[1755671367884,2.86,180.45,180.43,1.83]
[1755671370187,138.35,180.47,180.44,1.82]
[1755671370584,2.89,180.46,180.44,1.82]
[1755671370991,2.89,180.46,180.41,5.543]
[1755671371191,2.89,180.46,180.42,1.82]
[1755671371392,2.89,180.46,180.41,5.543]
[1755671371692,2.89,180.46,180.42,1.82]
[1755671372094,2.89,180.46,180.41,5.543]
[1755671372295,2.89,180.46,180.43,1.82]
[1755671372589,135.46,180.47,180.43,1.82]
[1755671372794,135.46,180.47,180.44,1.82]
[1755671372988,138.35,180.47,180.44,1.82]
[1755671373292,2.89,180.47,180.44,1.82]
[1755671373597,2.89,180.51,180.45,1.82]
[1755671373896,2.89,180.51,180.43,2.45783555]
[1755671373897,6.81147991,180.5,180.43,2.45783555]
[1755671374091,3.92147991,180.49,180.47,1.82]
[1755671374290,2.89,180.46,180.43,1.82]
[1755671374489,2.89,180.46,180.4,2.45783555]
[1755671374490,2.89,180.46,180.44,1.82]
[1755671374795,2.89,180.51,180.44,1.82]
[1755671374995,3.92145939,180.5,180.44,1.82]
[1755671375197,2.89,180.47,180.44,1.82]
[1755671376093,2.89,180.46,180.44,1.82]
[1755671378303,2.89,180.49,180.43,4.27783555]
[1755671378598,2.89,180.49,180.43,9.82023555]
[1755671378798,135.34,180.52,180.44,1.82]
[1755671379002,3.9208949,180.51,180.47,1.82]
[1755671379301,3.9208949,180.5,180.48,1.82]
[1755671379801,3.9208949,180.5,180.47,7.3612]
[1755671380103,2.89,180.56,180.48,1.82]
[1755671380302,2.89,180.54,180.48,1.82]
[1755671380504,2.89,180.52,180.48,1.82]
[1755671380704,2.89,180.56,180.48,1.82]
[1755671380905,2.89,180.54,180.48,1.82]
[1755671381201,2.89,180.51,180.48,1.82]
[1755671381405,135.24,180.57,180.47,5.5412]
[1755671381599,2.89,180.53,180.49,1.82]
[1755671381800,2.89,180.52,180.47,5.5412]
[1755671382104,2.89,180.55,180.49,4.27783555]
[1755671382301,6.80610285,180.54,180.51,1.82]
[1755671382498,138.13,180.57,180.5,1.82]
[1755671382799,138.13,180.57,180.52,2.45783555]
[1755671382800,2.89,180.57,180.52,2.45783555]
[1755671382997,2.89,180.57,180.54,1.82]
[1755671383504,2.89,180.57,180.55,1.82]
[1755671384402,2.89,180.61,180.53,1.82]
[1755671384603,2.89,180.59,180.53,1.82]
[1755671385006,2.89,180.59,180.46,1.82]
[1755671385200,2.89,180.57,180.46,4.27783555]
[1755671385510,2.89,180.55,180.46,9.81923555]
[1755671385809,2.89,180.55,180.46,4.27783555]
[1755671386199,2.89,180.55,180.46,9.81933555]
[1755671386802,2.89,180.55,180.48,1.82]
[1755671387906,2.89,180.55,180.48,7.3609]
[1755671388103,2.89,180.55,180.49,1.82]
[1755671389596,2.89,180.55,180.49,2.45783555]
[1755671389805,2.89,180.55,180.51,1.82]
[1755671389997,2.89,180.53,180.45,123.14011868]
[1755671390504,2.89,180.53,180.45,124.96011868]
[1755671393799,2.89,180.53,180.45,123.14011868]
[1755671394611,2.89,180.51,180.45,123.14011868]
[1755671396803,2.89,180.51,180.42,1.82]
[1755671399812,3.90897469,180.5,180.42,1.82]
[1755671400008,3.0,180.49,180.42,1.82]
[1755671400410,3.0,180.47,180.35,4.27783555]
[1755671400711,2.45783555,180.49,180.36,7.3645]
[1755671400712,3.0,180.45,180.36,7.3645]
[1755671400908,3.0,180.45,180.36,5.5445]
[1755671401107,3.0,180.45,180.37,1.82]
[1755671401299,3.0,180.45,180.37,7.3642]
[1755671401500,3.0,180.45,180.38,1.82]
[1755671401907,3.0,180.45,180.35,8.00253555]
[1755671402217,3.0,180.45,180.36,1.82]
[1755671403107,3.0,180.45,180.36,7.3646]
[1755671403308,3.0,180.45,180.38,2.45783555]
[1755671403510,3.0,180.51,180.39,1.82]
[1755671403701,3.90812808,180.5,180.39,1.82]
[1755671403905,6.90812808,180.49,180.41,2.45783555]
[1755671404108,3.0,180.49,180.42,1.82]
[1755671404907,3.0,180.49,180.42,7.3627]
[1755671407213,3.0,180.49,180.42,1.82]
[1755671417318,138.5,180.52,180.45,1.82]
[1755671417521,3.92220122,180.51,180.45,1.82]
[1755671417718,138.5,180.52,180.45,1.82]
[1755671418419,138.5,180.52,180.45,7.3618]
[1755671418624,138.5,180.52,180.45,1.82]
[1755671418817,372.36,180.57,180.49,1.82]
[1755671418818,3.0,180.55,180.49,1.82]
[1755671419017,372.36,180.57,180.47,2.45783555]
[1755671419018,6.92271171,180.54,180.5,1.82]
[1755671419222,3.0,180.54,180.5,1.82]
[1755671420028,3.0,180.56,180.47,9.81903555]
[1755671420217,3.0,180.54,180.47,9.81903555]
[1755671420413,3.0,180.54,180.47,4.27783555]
[1755671423215,3.0,180.54,180.47,9.81903555]
[1755671423728,3.0,180.54,180.47,2.45783555]
[1755671424020,372.36,180.57,180.38,124.28246424]
[1755671424021,372.36,180.57,180.51,1.82]
[1755671424223,135.34,180.58,180.51,7.3597]
[1755671424524,135.34,180.58,180.51,1.82]
[1755671424721,135.34,180.58,180.53,7.99693555]
[1755671425127,135.34,180.58,180.55,1.82]
[1755671425426,3.0,180.59,180.56,1.82]
[1755671425830,135.38,180.63,180.56,1.82]
[1755671426126,6.91978685,180.62,180.56,1.82]
[1755671426327,6.91978685,180.61,180.57,1.82]
[1755671426523,3.0,180.61,180.57,1.82]
[1755671426723,3.0,180.62,180.56,2.45783555]
[1755671428225,3.0,180.62,180.54,1.82]
[1755671429930,3.0,180.62,180.54,7.359]
[1755671430322,9.26403711,180.74,180.5,1.82]
[1755671430528,3.91612872,180.73,180.66,1.82]
[1755671430725,3.1,180.72,180.62,4.27783555]
[1755671430932,3.1,180.7,180.62,4.27783555]
[1755671431126,3.1,180.7,180.62,1.82]
[1755671436040,136.72,180.73,180.65,1.82]
[1755671436232,3.1,180.72,180.65,1.82]
[1755671436430,3.1,180.72,180.66,2.45783555]
[1755671439637,3.1,180.72,180.65,1.82]
[1755671440037,3.1,180.72,180.64,2.45783555]
[1755671440435,3.1,180.72,180.61,4.27783555]
[1755671443652,3.1,180.72,180.64,4.27783555]
[1755671443951,3.1,180.72,180.65,1.82]
[1755671445541,19.72,180.78,180.65,1.82]
[1755671445745,3.1,180.76,180.65,1.82]
[1755671448853,3.85113481,180.75,180.64,2.45783555]
[1755671449054,3.1,180.76,180.64,2.45783555]
[1755671449257,3.1,180.74,180.64,2.45783555]
[1755671451049,3.1,180.74,180.65,1.82]
[1755671458052,3.1,180.72,180.65,1.82]
[1755671463473,3.87316608,180.71,180.65,1.82]
[1755671463676,6.71342419,180.7,180.62,4.26783555]
[1755671463871,3.87342419,180.69,180.62,4.26783555]
[1755671464772,2.84,180.68,180.62,4.26783555]
[1755671465973,2.84,180.68,180.52,62.0]
[1755671465974,2.84,180.66,180.56,2.45783555]
[1755671466165,2.84,180.64,180.63,0.04022225]
[1755671466467,6.71756785,180.64,180.57,1.81]
[1755671466670,2.84,180.64,180.57,1.81]
[1755671467574,3.8832523,180.63,180.57,1.81]
[1755671467769,0.03732001,180.62,180.57,1.81]
[1755671467976,2.84,180.6,180.53,2.45783555]
[1755671468175,2.84,180.6,180.54,1.81]
[1755671468676,0.04215172,180.59,180.54,1.81]
[1755671469074,0.04215172,180.59,180.56,1.81]
[1755671469278,2.88215172,180.59,180.56,1.81]
[1755671469772,2.88215172,180.59,180.53,4.26783555]
[1755671470672,2.88215172,180.59,180.53,1.81]
[1755671471973,3.88423301,180.58,180.5,4.26783555]
[1755671472177,2.88215172,180.59,180.5,4.26783555]
[1755671472378,2.88215172,180.59,180.51,1.81]
[1755671472981,3.8899667,180.58,180.51,1.81]
[1755671473281,2.88215172,180.59,180.51,1.81]
[1755671474484,3.88793072,180.58,180.51,1.81]
[1755671474781,2.88215172,180.59,180.51,1.81]
[1755671474982,3.88793084,180.58,180.51,1.81]
[1755671475281,2.88215172,180.59,180.51,1.81]
[1755671475478,3.8859309,180.58,180.5,4.26783555]
[1755671475674,2.84,180.57,180.5,4.26783555]
[1755671476485,0.03955264,180.55,180.5,2.45783555]
[1755671476677,2.87955264,180.55,180.51,1.81]
[1755671476878,2.84,180.55,180.51,1.81]
[1755671477179,2.88234831,180.55,180.51,1.81]
[1755671477575,2.88234831,180.55,180.5,2.45783555]
[1755671477882,0.04234831,180.55,180.5,2.45783555]
[1755671478082,0.04234831,180.55,180.52,1.81]
[1755671478288,0.04234831,180.55,180.51,1.81]
[1755671478582,0.04234831,180.55,180.5,2.45783555]
[1755671478881,0.04234831,180.55,180.53,1.81]
[1755671479286,0.04234831,180.55,180.5,2.45783555]
[1755671479287,0.04234831,180.55,180.51,1.81]
[1755671480078,0.04234831,180.55,180.52,1.81]
[1755671480278,0.04234831,180.55,180.5,7.99793555]
[1755671480583,0.04234831,180.55,180.54,1.81]
[1755671480884,0.04234831,180.55,180.5,2.45783555]
[1755671481084,0.04234831,180.55,180.51,1.81]
[1755671481286,0.04234831,180.55,180.53,1.81]
[1755671484786,2.88234831,180.55,180.51,1.81]
[1755671485492,0.04234831,180.55,180.51,1.81]
[1755671485692,2.88234831,180.55,180.46,1.81]
[1755671486191,2.84,180.55,180.46,1.81]
[1755671486389,0.03637159,180.52,180.46,1.81]
[1755671486887,0.03637159,180.52,180.49,0.03895208]
[1755671487087,2.84,180.5,180.49,0.03895208]
[1755671487289,0.03637159,180.52,180.49,0.03895208]
[1755671487490,2.87637159,180.52,180.49,0.03895208]
[1755671487890,0.03637159,180.52,180.49,0.03895208]
[1755671488092,0.03637159,180.52,180.5,1.81]
[1755671488993,3.11,180.51,180.49,0.03895208]
[1755671489390,3.11,180.5,180.49,0.03895208]
[1755671491399,0.03637159,180.52,180.49,0.03895208]
[1755671491600,3.14637159,180.52,180.49,0.03895208]
[1755671492496,0.03637159,180.52,180.5,1.82]
[1755671492895,0.03637159,180.52,180.51,1.82]
[1755671497501,3.11,180.58,180.51,1.82]
[1755671498304,3.11,180.58,180.51,7.3601]
[1755671498799,3.11,180.62,180.53,2.45783555]
[1755671502310,3.87999547,180.61,180.53,2.45783555]
[1755671502500,3.11,180.6,180.53,2.45783555]
[1755671502696,3.11,180.6,180.54,1.82]
[1755671504505,3.11,180.58,180.48,4.27783555]
[1755671504696,3.11,180.56,180.48,1.82]
[1755671505507,3.87576792,180.55,180.48,1.82]
[1755671505712,3.11,180.54,180.48,1.82]
[1755671511005,136.0,180.57,180.48,4.27783555]
[1755671511006,139.11,180.57,180.48,4.27783555]
[1755671511206,3.88831122,180.56,180.49,1.82]
[1755671511400,139.11,180.57,180.49,1.82]
[1755671511699,3.88952699,180.56,180.49,1.82]
[1755671511905,139.11,180.57,180.49,1.82]
[1755671512106,3.88954699,180.56,180.49,7.3604]
[1755671512311,3.11,180.57,180.49,1.82]
[1755671512513,3.89025521,180.56,180.49,1.82]
[1755671512707,3.11,180.57,180.49,1.82]
[1755671512907,3.89002044,180.56,180.49,1.82]
[1755671513213,3.89093248,180.55,180.49,1.82]
[1755671513414,3.11,180.61,180.52,1.82]
[1755671513614,3.89172966,180.6,180.52,1.82]
[1755671513807,7.00172966,180.59,180.52,1.82]
[1755671514003,3.89172966,180.58,180.52,1.82]
[1755671515417,3.11,180.57,180.51,2.45783555]
[1755671515708,136.16,180.61,180.52,1.82]
[1755671515709,3.11,180.55,180.52,1.82]
[1755671515909,136.16,180.61,180.52,1.82]
[1755671516112,7.00338961,180.6,180.52,1.82]
[1755671516413,3.89338961,180.59,180.52,1.82]
[1755671520313,3.89338961,180.59,180.52,7.3596]
[1755671521012,3.89338961,180.59,180.52,1.82]
[1755671522015,2.91,180.58,180.52,1.82]
[1755671537429,2.91,180.58,180.51,2.45783555]
[1755671537620,2.91,180.58,180.48,4.27783555]
[1755671537824,2.91,180.58,180.49,1.82]
[1755671544935,2.91,180.58,180.52,1.82]
[1755671545131,2.91,180.58,180.52,4.27783555]
[1755671546131,2.91,180.58,180.52,9.81753555]
[1755671546330,2.91,180.58,180.53,1.82]
[1755671546825,2.91,180.58,180.53,5.5394]
[1755671547032,136.16,180.61,180.55,2.45783555]
[1755671547229,139.07,180.61,180.57,1.82]
[1755671547428,139.07,180.61,180.55,2.45783555]
[1755671547635,136.16,180.61,180.55,2.45783555]
[1755671547832,2.91,180.64,180.58,2.45783555]
[1755671548238,2.91,180.64,180.58,4.27783555]
[1755671550341,2.91,180.64,180.55,4.27783555]
[1755671551440,2.91,180.64,180.55,2.45783555]
[1755671554840,2.91,180.64,180.5,5.5401]
[1755671555041,2.91,180.64,180.52,2.45783555]
[1755671556433,2.91,180.64,180.53,1.82]
[1755671557138,135.86,180.63,180.53,1.82]
[1755671557739,135.86,180.63,180.54,1.82]
[1755671558139,2.91,180.64,180.54,1.82]
[1755671558344,135.84,180.63,180.54,1.82]
[1755671559139,135.84,180.63,180.54,7.3589]
[1755671559342,135.84,180.63,180.55,2.45783555]
[1755671559639,135.84,180.63,180.56,1.82]
[1755671560442,2.91,180.64,180.56,1.82]
[1755671560643,375.26,180.67,180.58,2.45783555]
[1755671560837,135.84,180.66,180.59,1.82]
[1755671561046,3.06,180.65,180.59,1.82]
[1755671563054,3.06,180.65,180.58,2.45783555]
[1755671564445,3.06,180.65,180.56,1.82]
[1755671565351,138.9,180.65,180.58,4.27783555]
[1755671566553,138.9,180.65,180.58,9.81573555]
[1755671568058,138.9,180.65,180.58,4.27783555]
[1755671570053,135.84,180.65,180.53,6.20654884]
[1755671570354,3.06,180.64,180.54,4.27783555]
[1755671572051,3.06,180.64,180.54,1.82]
[1755671583362,2.45783555,180.62,180.5,2.45783555]
[1755671583563,2.45783555,180.62,180.5,1.82]
[1755671583564,2.99,180.61,180.5,1.82]
[1755671583759,2.99,180.58,180.47,1.82]
[1755671583950,2.99,180.55,180.45,123.67933657]
[1755671584267,2.99,180.53,180.45,123.67933657]
[1755671585957,2.99,180.53,180.46,1.82]
[1755671586962,135.76,180.54,180.46,4.27783555]
[1755671587163,135.76,180.54,180.46,2.45783555]
[1755671587464,135.76,180.54,180.47,1.82]
[1755671589562,135.76,180.54,180.45,125.49933657]
[1755671589762,2.99,180.53,180.45,125.49933657]
[1755671589963,2.99,180.53,180.45,123.67933657]
[1755671590164,2.99,180.53,180.46,1.82]
[1755671592065,135.76,180.54,180.47,1.82]
[1755671592871,135.76,180.54,180.47,7.3611]
[1755671593167,135.76,180.54,180.48,1.82]
[1755671596966,135.76,180.54,180.48,7.3607]
[1755671597166,135.76,180.54,180.49,1.82]
[1755671597374,135.76,180.54,180.48,5.5407]
[1755671597568,135.76,180.54,180.51,1.82]
[1755671598273,138.75,180.54,180.51,1.82]
[1755671603170,2.99,180.53,180.47,5.5411]
[1755671603371,2.99,180.53,180.48,1.82]
[1755671603676,2.99,180.53,180.49,1.82]
[1755671604375,135.76,180.54,180.46,7.99923555]
[1755671604576,2.99,180.51,180.47,1.82]
[1755671605075,2.99,180.51,180.46,7.99923555]
[1755671605277,2.99,180.51,180.48,1.82]
[1755671605580,135.76,180.54,180.46,7.99923555]
[1755671605770,135.76,180.54,180.47,7.3611]
[1755671606676,135.76,180.54,180.48,1.82]
[1755671609680,135.76,180.54,180.48,7.3609]
[1755671609877,135.76,180.54,180.48,1.82]
[1755671610278,2.99,180.53,180.48,1.82]
[1755671611376,2.99,180.52,180.49,1.81]
[1755671615371,2.99,180.52,180.5,1.81]
[1755671615578,135.76,180.54,180.5,1.81]
[1755671615778,138.75,180.54,180.5,1.81]
[1755671616081,138.75,180.54,180.49,1.81]
[1755671616277,135.58,180.59,180.5,1.81]
[1755671616476,2.99,180.58,180.5,1.81]
[1755671618279,2.99,180.58,180.5,7.3503]
[1755671620884,2.99,180.58,180.5,1.81]
[1755671622487,2.99,180.58,180.47,1.81]
[1755671623277,2.99,180.58,180.47,7.3511]
[1755671625381,2.99,180.58,180.49,1.81]
[1755671629382,2.99,180.58,180.46,10.47438439]
[1755671629887,2.99,180.58,180.46,16.01568439]
[1755671630087,2.99,180.58,180.47,1.81]
[1755671631287,2.99,180.58,180.48,1.81]
[1755671631691,2.99,180.58,180.5,5.5401]
[1755671631878,2.99,180.58,180.5,1.81]
[1755671632483,2.99,180.58,180.53,1.81]
[1755671632687,2.99,180.57,180.54,1.81]
[1755671633389,2.99,180.6,180.51,1.81]
[1755671638094,2.99,180.6,180.51,7.3498]
[1755671638285,2.99,180.6,180.52,1.81]
[1755671640088,2.99,180.6,180.53,1.82]
[1755671640788,2.99,180.6,180.53,5.5393]
[1755671640984,2.99,180.6,180.54,1.82]
[1755671641895,2.99,180.6,180.52,2.45783555]
[1755671642794,2.99,180.6,180.53,1.82]
[1755671644992,5.44783555,180.6,180.49,1.82]
[1755671645190,2.45783555,180.6,180.49,1.82]
[1755671645397,3.08,180.59,180.49,1.82]
[1755671649493,3.08,180.55,180.45,125.49933657]
[1755671649695,3.08,180.53,180.45,125.49933657]
[1755671652696,3.08,180.53,180.45,131.04103657]
[1755671652890,3.08,180.53,180.46,1.82]
[1755671654001,135.52,180.54,180.48,1.82]
[1755671656105,138.6,180.54,180.48,1.82]
[1755671657007,135.52,180.54,180.45,123.67933657]
[1755671657304,3.08,180.53,180.45,125.49933657]
[1755671658405,3.08,180.53,180.46,1.82]
[1755671659000,3.08,180.53,180.47,1.82]
[1755671660204,3.08,180.53,180.47,7.3612]
[1755671661002,3.08,180.53,180.47,1.82]
[1755671661403,6.16403711,180.62,180.52,2.45783555]
[1755671661601,3.08,180.61,180.55,2.45783555]
[1755671661800,3.08,180.61,180.55,4.27783555]
[1755671668109,135.78,180.63,180.55,2.45783555]
[1755671668311,135.78,180.63,180.56,1.82]
[1755671670714,3.02,180.62,180.56,1.82]
[1755671673511,3.02,180.62,180.56,7.3585]
[1755671673909,3.02,180.62,180.56,1.82]
[1755671681019,3.02,180.62,180.55,2.45783555]
[1755671681413,3.02,180.62,180.55,4.27783555]
[1755671681819,3.02,180.62,180.57,1.82]
[1755671682112,135.78,180.63,180.6,1.82]
[1755671682316,3.02,180.66,180.58,7.99543555]
[1755671682512,374.57783555,180.72,180.61,1.82]
[1755671682513,3.02,180.65,180.61,1.82]
[1755671682714,3.02,180.65,180.59,1.82]
[1755671682918,135.54,180.67,180.61,7.99463555]
[1755671683219,135.54,180.67,180.61,2.45783555]
[1755671683519,138.56,180.67,180.61,4.27783555]
[1755671684016,3.02,180.66,180.61,2.45783555]
[1755671684215,3.02,180.66,180.62,1.82]
[1755671684716,135.54,180.67,180.62,1.82]
[1755671685019,3.02,180.65,180.62,1.82]
[1755671685907,135.54,180.67,180.61,4.27783555]
[1755671686820,3.02,180.65,180.61,4.27783555]
[1755671687518,3.02,180.65,180.61,2.45783555]
[1755671687720,3.02,180.65,180.62,1.82]
[1755671687917,3.02,180.64,180.59,7.99523555]
[1755671688318,3.02,180.64,180.61,1.82]
[1755671688719,3.02,180.63,180.59,2.45783555]
[1755671688923,3.02,180.66,180.59,4.27783555]
[1755671690419,3.02,180.66,180.59,7.99523555]
[1755671690617,3.02,180.66,180.6,1.82]
[1755671692017,3.02,180.66,180.6,7.3571]
[1755671693723,3.02,180.66,180.59,2.45783555]
[1755671693924,135.54,180.67,180.62,1.82]
[1755671694122,138.56,180.67,180.63,1.82]
[1755671695321,138.56,180.67,180.64,1.82]
[1755671695824,138.59768763,180.67,180.64,1.82]
[1755671696022,3.05768763,180.67,180.64,1.82]
[1755671697325,3.05768763,180.67,180.62,7.99443555]
[1755671697521,0.03768763,180.67,180.62,7.99443555]
[1755671697715,0.03768763,180.67,180.64,1.82]
[1755671697920,0.03768763,180.67,180.65,1.82]
[1755671699013,2.89768763,180.67,180.64,1.82]
[1755671700626,0.03768763,180.67,180.62,2.45783555]
[1755671700832,2.86,180.64,180.62,2.45783555]
[1755671701128,2.86,180.66,180.62,4.27783555]
[1755671702623,0.03768763,180.67,180.63,1.82]
[1755671702825,0.03768763,180.67,180.62,4.27783555]
[1755671703021,2.86,180.65,180.62,4.27783555]
[1755671703423,2.86,180.66,180.6,2.45783555]
[1755671703622,2.86,180.66,180.58,4.27783555]
[1755671703833,2.86,180.66,180.58,1.82]